Cogmind - Beta 11 X2 --- EXPLORER MODE // 2021.02.19 @ 23:21:43 Player: Krytoss Result: Escaped! Performance ------------- Evolutions (9) 4500 Regions Visited (16) 3200 Robots Destroyed (48) 240 Value Destroyed (1058) 1058 Prototype IDs (38) 760 Alien Tech Used (0) 0 Bonus (3595) 3595 TOTAL SCORE: 13353 Bonus ------- Follower Combat Kills 295 Aligned with FarCom 300 Win 3000 Cogmind --------- Core Integrity 1600/1600 Matter 250/300 Energy 334/340 System Corruption 0% Temperature Cool (15) Movement Flying (31) Location To Epsilon Eridani Parts ------- > --- POWER (3) -------- Light Antimatter Reactor Light Particle Reactor Light Quantum Reactor > --- PROPULSION (9) --- Impulse Thruster Field Propulsion Array Impulse Thruster Array Impulse Thruster Array Impulse Thruster Array > --- UTILITY (12) ----- Advanced Heat Sink Advanced Coolant Injector Large Storage Unit Advanced Weight Redist. System Reaction Control System Improved Shield Generator Hacking Suite Advanced Hacking Suite Advanced Hacking Suite Improved System Shield Improved System Shield Improved System Shield > --- WEAPON (2) ------- Power Maul Power Maul > --- INVENTORY (15) --- Light Fission Core Light Quantum Reactor Light Quantum Reactor Light Quantum Reactor Improved VTOL Module Improved VTOL Module Nuclear Pulse Array Impulse Thruster Field Propulsion Array Advanced Cooling System Large Storage Unit Improved Stasis Canceller Improved Plasma Cutter Peak State ------------ > --- POWER ------------ Light Particle Reactor Light Quantum Reactor Light Quantum Reactor > --- PROPULSION ------- Impulse Thruster Field Propulsion Array Field Propulsion Array Impulse Thruster Array Impulse Thruster Array > --- UTILITY ---------- Advanced Heat Sink Advanced Cooling System Advanced Coolant Injector Large Storage Unit Advanced Weight Redist. System Reaction Control System Improved Shield Generator Hacking Suite Advanced Hacking Suite Improved System Shield Improved System Shield Improved System Shield > --- WEAPON ----------- Power Maul Power Maul > --- INVENTORY -------- Light Fission Core Light Antimatter Reactor Light Quantum Reactor Light Quantum Reactor Improved VTOL Module Improved VTOL Module Nuclear Pulse Thruster Nuclear Pulse Array Impulse Thruster Impulse Thruster Array Large Storage Unit Improved Stasis Canceller Improved Plasma Cutter [Rating: 167] Favorites ----------- Power Light Nuclear Core Engine Light Deuterium Engine Power Core Light Nuclear Core Reactor Light Particle Reactor Propulsion Aluminum Leg Treads Light Treads Leg Aluminum Leg Hover Unit Aerolev Unit Flight Unit Improved VTOL Module Utility Large Storage Unit Device Advanced Weight Redist. System Storage Large Storage Unit Processor Targeting Computer Hackware Improved System Shield Protection Experimental Utility Shielding Weapon Power Maul Energy Gun Pulse Rifle Ballistic Gun Assault Rifle Special Weapon Mining Laser Impact Weapon Power Maul Build | -11 -10 -10 -10 -9 -8 -7 -6 -5 -4 -4 -4 -4 -4 -3 -2 -1 ------- Run | Scr Mat Min Exi Min Mat Fac Fac Fac Fac Ext Cet Arc Hub Res Res Acc Slots Evolved 19 | . 1 . . . 4 2 2 2 2 . . . . 2 2 2 Power 2 | . . . . . 1 . . . . . . . . 1 . . Propulsion 7 | . 1 . . . 1 1 1 . . . . . . 1 1 1 Utility 10 | . . . . . 2 1 1 2 2 . . . . . 1 1 Weapon . | . . . . . . . . . . . . . . . . . Parts Attached 145 | 1 13 3 5 . 48 15 11 7 4 5 . . . 13 11 9 Power 26 | . 1 2 . . 6 1 3 2 . 1 . . . 5 1 4 Engine 6 | . 1 2 . . 2 1 . . . . . . . . . . Core 14 | . . . . . 4 . 3 2 . 1 . . . 3 . 1 Reactor 6 | . . . . . . . . . . . . . . 2 1 3 Propulsion 45 | . 6 . . . 10 11 2 1 . 2 . . . 7 3 3 Treads 1 | . 1 . . . . . . . . . . . . . . . Leg 13 | . 5 . . . 8 . . . . . . . . . . . Wheel . | . . . . . . . . . . . . . . . . . Hover 1 | . . . . . 1 . . . . . . . . . . . Flight 30 | . . . . . 1 11 2 1 . 2 . . . 7 3 3 Utility 46 | 1 2 . 3 . 16 2 5 4 4 2 . . . 1 4 2 Device 20 | . . . 2 . 4 1 3 2 2 . . . . 1 4 1 Storage 15 | . 2 . 1 . 11 . . . 1 . . . . . . . Processor 2 | 1 . . . . . 1 . . . . . . . . . . Hackware 8 | . . . . . 1 . 2 2 1 1 . . . . . 1 Protection 1 | . . . . . . . . . . 1 . . . . . . Artifact . | . . . . . . . . . . . . . . . . . Weapon 28 | . 4 1 2 . 16 1 1 . . . . . . . 3 . Energy Gun 10 | . 2 1 1 . 6 . . . . . . . . . . . Energy Cannon . | . . . . . . . . . . . . . . . . . Ballistic Gun 7 | . 2 . . . 5 . . . . . . . . . . . Ballistic Cannon . | . . . . . . . . . . . . . . . . . Launcher . | . . . . . . . . . . . . . . . . . Special Weapon 7 | . . . 1 . 5 . . . . . . . . . 1 . Impact Weapon 4 | . . . . . . 1 1 . . . . . . . 2 . Slashing Weapon . | . . . . . . . . . . . . . . . . . Piercing Weapon . | . . . . . . . . . . . . . . . . . Special Melee Weapon . | . . . . . . . . . . . . . . . . . Unidentified Prototypes 10 | . . . 2 . 5 . . 1 . . . . . 1 1 . Parts Lost 13 | . . . . . 1 . . . . 4 . . . 8 . . Power 3 | . . . . . . . . . . . . . . 3 . . Propulsion 6 | . . . . . . . . . . 2 . . . 4 . . Utility 3 | . . . . . . . . . . 2 . . . 1 . . Weapon 1 | . . . . . 1 . . . . . . . . . . . Highest Loss Streak 5 | . . . . . 1 . . . . 4 . . . 5 . . Average Slot Usage (%) 98 | . 98 100 99 100 99 99 99 99 100 99 100 100 100 96 87 84 Engine 6 | . 11 12 12 12 10 6 1 . . . . . . . . . Core 5 | . . . . . 5 7 10 10 10 10 10 10 10 12 4 . Leg 18 | . 36 37 37 37 32 . . . . . . . . . . . Flight 14 | . . . . . . 34 36 33 30 29 30 30 30 28 20 19 Device 9 | . . . . . 8 13 13 16 20 16 15 15 15 13 20 21 Storage 10 | . 12 12 11 12 17 7 6 5 5 5 5 5 5 4 4 3 Processor 4 | . 12 12 12 12 5 6 . . . . . . . . . . Hackware 9 | . . . . . 1 7 16 22 25 24 25 25 25 22 20 20 Energy Gun 5 | . 14 12 11 12 7 7 . . . . . . . . . . Ballistic Gun 4 | . 9 12 12 12 7 . . . . . . . . . . . Impact Weapon 4 | . . . . . . 1 11 11 10 10 10 10 10 8 7 7 Naked Turns . | . . . . . . . . . . . . . . . . . Heaviest Build 78 | 18 29 30 30 30 76 36 38 40 43 43 43 43 43 55 66 78 Greatest Support 79 | 20 30 30 30 30 47 37 41 43 43 44 44 44 44 57 68 79 Greatest Overweight (x) 1 | . 1 . . . 1 . . . . . . . . 1 . . Average Overweight (x) . | . . . . . . . . . . . . . . . . . Largest Inventory Capacity 15 | 10 15 15 15 15 15 15 15 15 15 15 15 15 15 15 15 15 Average Capacity 14 | 10 14 15 14 15 15 15 15 15 15 15 15 15 15 15 15 15 Most Carried 15 | 7 15 15 15 15 15 15 15 15 15 15 11 11 11 15 15 15 Average Carried 14 | 7 13 14 14 15 14 14 14 13 13 12 11 11 11 13 13 13 Final Capacity 15 | 10 15 15 15 15 15 15 15 15 15 15 15 15 15 15 15 15 Final Carried 15 | 7 15 15 15 15 15 15 15 14 15 11 11 11 11 11 14 15 Class Distribution -------------------- 40% | Hacker-Mutant 28% | Wizard-Sprinter 13% | Scavenger-Mutant 10% | Hacker-Scout 3% | Wizard-Scout 3% | Hacker-Sprinter Dominant Class ---------------- Hacker-Mutant | -10/Materials Hacker-Mutant | -10/Mines Hacker-Mutant | -10/Exiles Hacker-Mutant | -9/Mines Hacker-Mutant | -8/Materials Hacker-Sprinter | -7/Factory Hacker-Scout | -6/Factory Wizard-Sprinter | -5/Factory Wizard-Sprinter | -4/Factory Wizard-Sprinter | -4/Extension Wizard-Sprinter | -4/Cetus Wizard-Sprinter | -4/Archives Wizard-Sprinter | -4/Hub_04(d) Wizard-Sprinter | -3/Research Wizard-Sprinter | -2/Research Wizard-Sprinter | -1/Access Resources | -11 -10 -10 -10 -9 -8 -7 -6 -5 -4 -4 -4 -4 -4 -3 -2 -1 ----------- Run | Scr Mat Min Exi Min Mat Fac Fac Fac Fac Ext Cet Arc Hub Res Res Acc Matter Collected 2281 | 210 559 32 70 50 679 53 248 50 40 69 10 . . 27 61 123 Remotely . | . . . . . . . . . . . . . . . . . Salvage Created 2154 | 63 285 27 . . 1608 . 16 . 33 84 . . . . . 38 Parts 95 | 1 13 4 . . 77 . . . . . . . . . . . Haulers Intercepted 7 | . 1 . . . 6 . . . . . . . . . . . Recyclers Shooed 3 | . 1 . . . 2 . . . . . . . . . . . Parts Field Recycled . | . . . . . . . . . . . . . . . . . Retrieved Matter . | . . . . . . . . . . . . . . . . . Parts Self-Destructed . | . . . . . . . . . . . . . . . . . Prevented . | . . . . . . . . . . . . . . . . . Kills | -11 -10 -10 -10 -9 -8 -7 -6 -5 -4 -4 -4 -4 -4 -3 -2 -1 ------- Run | Scr Mat Min Exi Min Mat Fac Fac Fac Fac Ext Cet Arc Hub Res Res Acc Combat Hostiles Destroyed 24 | . 6 2 . . 16 . . . . . . . . . . . Guns 24 | . 6 2 . . 16 . . . . . . . . . . . Classes Destroyed 10 | 1 3 . . . 5 . . . . 1 . . . . . . Worker 3 | . . . . . 2 . 1 . . . . . . . . . Hauler 7 | . 1 . . . 6 . . . . . . . . . . . Recycler 9 | 1 1 . . . 7 . . . . . . . . . . . Operator 2 | . . . . . 1 . . . 1 . . . . . . . Watcher 3 | . . . . . . . . . . 2 . . . . . 1 Swarmer 8 | . 4 2 . . 2 . . . . . . . . . . . Grunt 8 | . 2 . . . 6 . . . . . . . . . . . Brawler 1 | . . . . . 1 . . . . . . . . . . . Sentry 6 | . . . . . 6 . . . . . . . . . . . Hunter 1 | . . . . . 1 . . . . . . . . . . . Best Kill Streak 8 | 1 2 2 . . 8 . 1 . 1 1 . . . . . 1 Combat Bots Only 4 | . 2 2 . . 4 . . . . . . . . . . . Max Kills in Single Turn 2 | 1 1 1 . . 2 . 1 . 1 1 . . . . . 1 Gunslinging 1 | . . . . . 1 . . . . . . . . . . . Exploded . | . . . . . . . . . . . . . . . . . Melee . | . . . . . . . . . . . . . . . . . Uniques/NPCs Destroyed . | . . . . . . . . . . . . . . . . . Combat | -11 -10 -10 -10 -9 -8 -7 -6 -5 -4 -4 -4 -4 -4 -3 -2 -1 -------- Run | Scr Mat Min Exi Min Mat Fac Fac Fac Fac Ext Cet Arc Hub Res Res Acc Damage Taken 2253 | . 90 45 . . 517 135 49 . . 439 107 36 15 766 32 22 Core 383 | . 4 11 . . 67 17 . . . 87 7 . 15 157 18 . Absorbed by Shields 9 | . . . . . . . . . . . . . . . . 9 Core Remaining (%) 95 | 100 . . . 94 87 97 100 100 . . . . 90 87 98 100 Volleys Fired 111 | 3 22 4 . . 80 2 . . . . . . . . . . Largest 2 | 2 2 2 . . 2 1 . . . . . . . . . . Hottest 161 | 90 90 70 . . 161 100 . . . . . . . . . . Shots Fired 201 | 6 40 8 . . 145 2 . . . . . . . . . . Gun 188 | 6 40 8 . . 134 . . . . . . . . . . . Cannon . | . . . . . . . . . . . . . . . . . Launcher . | . . . . . . . . . . . . . . . . . Special 13 | . . . . . 11 2 . . . . . . . . . . Kinetic 83 | . 13 4 . . 66 . . . . . . . . . . . Thermal 118 | 6 27 4 . . 79 2 . . . . . . . . . . Explosive . | . . . . . . . . . . . . . . . . . Electromagnetic . | . . . . . . . . . . . . . . . . . Robot Hit Streak 41 | 5 32 6 . . 41 . . . . . . . . . . . Robot Miss Streak 2 | . 1 1 . . 2 . . . . . . . . . . . Penetration Max 1 | . . . . . 1 . . . . . . . . . . . Secondary Targets 2 | . . 1 . . 1 . . . . . . . . . . . Max Gunslinging Chain 1 | . . 1 . . 1 . . . . . . . . . . . Shots Hit Robots 170 | 5 36 6 . . 108 . 5 2 1 3 . . . 1 2 1 Core Hits 66 | 2 14 2 . 1 46 . . . . . . . . . 1 . Critical Hits . | . . . . . . . . . . . . . . . . . Critical Kills . | . . . . . . . . . . . . . . . . . Critical Parts Destroyed . | . . . . . . . . . . . . . . . . . Melee Attacks 56 | . . . . . . 4 8 4 4 8 . . . 15 7 6 Impact 56 | . . . . . . 4 8 4 4 8 . . . 15 7 6 Slashing . | . . . . . . . . . . . . . . . . . Piercing . | . . . . . . . . . . . . . . . . . Sneak Attacks 2 | . . . . . . . 1 . 1 . . . . . . . Combat Hostiles . | . . . . . . . . . . . . . . . . . Follow-up Attacks 1 | . . . . . . . 1 . . . . . . . . . Damage Inflicted 3373 | 69 427 61 . 2 1968 . 322 76 148 132 . . . 39 100 29 Guns 2525 | 69 427 61 . . 1968 . . . . . . . . . . . Cannons . | . . . . . . . . . . . . . . . . . Explosions . | . . . . . . . . . . . . . . . . . Melee 846 | . . . . . . . 322 76 148 132 . . . 39 100 29 Ramming 2 | . . . . 2 . . . . . . . . . . . . Kinetic 1235 | . 141 24 . . 1070 . . . . . . . . . . . Thermal 1290 | 69 286 37 . . 898 . . . . . . . . . . . Explosive . | . . . . . . . . . . . . . . . . . Electromagnetic . | . . . . . . . . . . . . . . . . . Impact 846 | . . . . . . . 322 76 148 132 . . . 39 100 29 Slashing . | . . . . . . . . . . . . . . . . . Piercing . | . . . . . . . . . . . . . . . . . Highest Corruption 6 | . . . . . 6 . . . . 5 5 5 5 1 . . Average Corruption 2 | . . . . . 2 . . . . 5 5 5 5 1 . . Corruption Purged . | . . . . . . . . . . . . . . . . . Effects 25 | . . . . . 18 . . . . 5 . . 1 1 . . Message Errors 7 | . . . . . 6 . . . . 1 . . . . . . Matter Fused 4 | . . . . . 2 . . . . 1 . . 1 . . . Heat Flow Errors 5 | . . . . . 4 . . . . 1 . . . . . . Energy Discharges 6 | . . . . . 3 . . . . 2 . . . 1 . . Data Loss (minor) 3 | . . . . . 3 . . . . . . . . . . . Overload Shots . | . . . . . . . . . . . . . . . . . Overflow Damage 382 | . . . . . . . 202 . 118 45 . . . . 12 5 Projectiles . | . . . . . . . . . . . . . . . . . Explosions . | . . . . . . . . . . . . . . . . . Melee 382 | . . . . . . . 202 . 118 45 . . . . 12 5 Knockbacks 4 | . . . . . . . . . 1 . . . . 1 2 . Impact 4 | . . . . . . . . . 1 . . . . 1 2 . Kinetic . | . . . . . . . . . . . . . . . . . Secondary . | . . . . . . . . . . . . . . . . . Self-Inflicted Damage . | . . . . . . . . . . . . . . . . . Shots . | . . . . . . . . . . . . . . . . . Rammed . | . . . . . . . . . . . . . . . . . Targets Rammed 1 | . . . . 1 . . . . . . . . . . . . Kicked 1 | . . . . 1 . . . . . . . . . . . . Crushed . | . . . . . . . . . . . . . . . . . Highest Temperature 228 | 90 90 36 . . 188 10 228 . . 184 . . . 45 . . Average Temperature 62 | 48 29 19 . . 32 6 74 . . 77 . . . 18 . . Received Heat Transfer 537 | . 30 . . . 288 60 27 . . 18 . 18 9 78 9 . Siege Activations . | . . . . . . . . . . . . . . . . . Robots Corrupted . | . . . . . . . . . . . . . . . . . Combat Hostiles . | . . . . . . . . . . . . . . . . . Parts Fried 10 | . . . . . . . . . 2 6 . . . . . 2 Impact Corruptions 16 | . . . . . . . 9 . 3 2 . . . . 1 1 Robots Melted . | . . . . . . . . . . . . . . . . . Combat Hostiles . | . . . . . . . . . . . . . . . . . Parts Melted 4 | 1 1 . . . 2 . . . . . . . . . . . Heat Transferred 3062 | 186 804 111 . . 1961 . . . . . . . . . . . Parts Sabotaged . | . . . . . . . . . . . . . . . . . Parts Stolen . | . . . . . . . . . . . . . . . . . Parts Stripped . | . . . . . . . . . . . . . . . . . Power Chain Reactions . | . . . . . . . . . . . . . . . . . Missiles Intercepted . | . . . . . . . . . . . . . . . . . Alert | -11 -10 -10 -10 -9 -8 -7 -6 -5 -4 -4 -4 -4 -4 -3 -2 -1 ------- Run | Scr Mat Min Exi Min Mat Fac Fac Fac Fac Ext Cet Arc Hub Res Res Acc Peak Influence 634 | 5 208 54 . . 186 626 482 420 49 64 26 67 64 634 283 175 Initial 256 | . 2 4 . . . 25 225 . 18 5 26 7 15 24 256 21 Average 80 | 2 63 38 . . 38 233 180 47 29 11 26 38 43 188 165 102 Maximum Alert Level 2 | . 1 . . . . 2 2 2 . . . . . 2 1 . Low Security (%) 88 | 100 95 100 . 100 100 55 52 99 100 100 100 100 100 57 77 100 Level 1 9 | . 4 . . . . . 46 . . . . . . 32 22 . Level 2 2 | . . . . . . 44 1 . . . . . . 9 . . Level 3 . | . . . . . . . . . . . . . . . . . Level 4 . | . . . . . . . . . . . . . . . . . Level 5 . | . . . . . . . . . . . . . . . . . High Security . | . . . . . . . . . . . . . . . . . Max Security . | . . . . . . . . . . . . . . . . . Squads Dispatched 10 | . . 1 . . 1 1 1 1 1 . . . . 3 1 . Investigation 1 | . . 1 . . . . . . . . . . . . . . Extermination 4 | . . . . . . 1 1 1 . . . . . 1 . . Reinforcement 5 | . . . . . 1 . . . 1 . . . . 2 1 . Assault . | . . . . . . . . . . . . . . . . . Garrison . | . . . . . . . . . . . . . . . . . Intercept . | . . . . . . . . . . . . . . . . . Construction Impeded . | . . . . . . . . . . . . . . . . . Haulers Reinforced . | . . . . . . . . . . . . . . . . . Stealth | -11 -10 -10 -10 -9 -8 -7 -6 -5 -4 -4 -4 -4 -4 -3 -2 -1 --------- Run | Scr Mat Min Exi Min Mat Fac Fac Fac Fac Ext Cet Arc Hub Res Res Acc Distress Signals 19 | . . . . . 6 2 . 2 . . 1 . . 6 . 2 Communications Jammed . | . . . . . . . . . . . . . . . . . Distress Signals . | . . . . . . . . . . . . . . . . . Times Spotted 205 | . 20 2 . . 36 14 14 8 1 7 13 4 2 64 9 11 Peak Tracking Total 19 | . 5 2 . . 5 8 2 3 1 5 12 4 2 19 4 6 Tactical Retreats 28 | . 1 . . . 3 3 2 . . . . . . 16 . 3 Traps | -11 -10 -10 -10 -9 -8 -7 -6 -5 -4 -4 -4 -4 -4 -3 -2 -1 ------- Run | Scr Mat Min Exi Min Mat Fac Fac Fac Fac Ext Cet Arc Hub Res Res Acc Traps Triggered 8 | . 2 . . . 2 1 1 1 . . . . . 1 . . Indirectly . | . . . . . . . . . . . . . . . . . Trap Hack Attempts . | . . . . . . . . . . . . . . . . . Triggered . | . . . . . . . . . . . . . . . . . Disarmed . | . . . . . . . . . . . . . . . . . Reprogrammed 18 | . . . . . . . . 6 10 2 . . . . . . Reused 1 | . . . . . . . . . . 1 . . . . . . Traps Extracted . | . . . . . . . . . . . . . . . . . Installed . | . . . . . . . . . . . . . . . . . Triggered 1 | . . . . . . . . . . 1 . . . . . . Machines | -11 -10 -10 -10 -9 -8 -7 -6 -5 -4 -4 -4 -4 -4 -3 -2 -1 ---------- Run | Scr Mat Min Exi Min Mat Fac Fac Fac Fac Ext Cet Arc Hub Res Res Acc Machines Disabled . | . . . . . . . . . . . . . . . . . Max in Single Turn . | . . . . . . . . . . . . . . . . . Garrison Access 5 | . . . . . . . 1 2 . . . . . 2 . . Machines Sabotaged . | . . . . . . . . . . . . . . . . . Garrisons Compromised . | . . . . . . . . . . . . . . . . . Overloaded Fab Kills . | . . . . . . . . . . . . . . . . . Fab Network Shutdowns 3 | . . . . . . 1 1 1 . . . . . . . . Hacking | -11 -10 -10 -10 -9 -8 -7 -6 -5 -4 -4 -4 -4 -4 -3 -2 -1 --------- Run | Scr Mat Min Exi Min Mat Fac Fac Fac Fac Ext Cet Arc Hub Res Res Acc Machines Accessed 90 | . 9 1 4 . 12 10 19 11 5 5 2 . 1 6 3 2 Terminals 51 | . 8 . . . 9 4 7 6 3 5 2 . 1 2 2 2 Fabricators 9 | . . . . . . 1 6 1 . . . . . 1 . . Repair Stations 7 | . . . . . 2 1 2 1 1 . . . . . . . Recycling Units 3 | . 1 . . . . . 1 . . . . . . . 1 . Scanalyzers 8 | . . . . . 1 3 1 1 1 . . . . 1 . . Garrison Access 7 | . . . . . . 1 2 2 . . . . . 2 . . Total Hacks 433 | . 39 1 49 . 42 38 85 38 44 37 5 . 8 18 23 6 Successful 313 | . 32 1 49 . 33 26 53 20 30 29 5 . 4 14 13 4 Failed 120 | . 7 . . . 9 12 32 18 14 8 . . 4 4 10 2 Catastrophic 4 | . . . . . . . 2 1 . . . . 1 . . . Database Lockouts . | . . . . . . . . . . . . . . . . . Manual 157 | . 20 . 1 . 11 10 26 7 28 27 2 . 7 7 9 2 Terminals 271 | . 38 . . . 25 18 49 20 36 37 5 . 8 11 18 6 Fabricators 26 | . . . . . . 3 17 3 . . . . . 3 . . Repair Stations 25 | . . . . . 9 2 4 8 2 . . . . . . . Recycling Units 7 | . 1 . . . . . 1 . . . . . . . 5 . Scanalyzers 33 | . . . . . 8 12 2 3 6 . . . . 2 . . Garrison Access 21 | . . . . . . 3 12 4 . . . . . 2 . . Terminal Hacks 205 | . 26 1 49 . 15 9 27 7 21 21 5 . 4 7 9 4 Record 80 | . . . 49 . 1 3 11 1 4 5 4 . . 1 1 . Part Schematic 6 | . . . . . . . . 1 5 . . . . . . . Robot Schematic 2 | . . . . . . . 2 . . . . . . . . . Robot Analysis 1 | . 1 . . . . . . . . . . . . . . . Prototype ID Bank 20 | . 11 . . . 2 1 1 1 1 1 . . . 1 1 . Open Door 4 | . . 1 . . . . . . 1 . 1 . . . . 1 Level Access Points 8 | . . . . . . . 1 1 1 1 . . 1 1 1 1 Branch Access Points 8 | . . . . . . 1 1 1 2 1 . . 1 1 . . Emergency Access Points 2 | . . . . . . . . . 1 1 . . . . . . Terminal Index 1 | . . . . . . . 1 . . . . . . . . . Repair Station Index 1 | . . . . . . . . . . . . . . . 1 . Garrison Index 1 | . . . . . . . . . . . . . . . . 1 Alert Level 6 | . 2 . . . . . 2 . . 1 . . . . 1 . Unreport Threat 3 | . . . . . . 1 1 . . . . . . . 1 . Locate Traps 17 | . 3 . . . 2 1 1 1 1 4 . . 1 . 2 1 Reprogram Traps 5 | . . . . . . . . 1 2 2 . . . . . . Dispatch Records 4 | . 2 . . . . . 1 . . 1 . . . . . . Surveillance Status 1 | . 1 . . . . . . . . . . . . . . . Patrol Status 2 | . . . . . 1 . 1 . . . . . . . . . Transport Status 2 | . . . . . 2 . . . . . . . . . . . Investigation Status 1 | . . . . . . . 1 . . . . . . . . . Reinforcement Status 3 | . . . . . 1 . 1 . . . . . . 1 . . Assault Status 2 | . . . . . . . . . 1 . . . . 1 . . Recall Reinforcements 1 | . . . . . . . . . . . . . . 1 . . Hauler Manifests 5 | . 2 . . . 3 . . . . . . . . . . . Registered Components 5 | . 1 . . . . 1 1 . 1 . . . . . 1 . Registered Prototypes 2 | . 1 . . . 1 . . . . . . . . . . . Zone Layout 12 | . 2 . . . 2 1 1 . 1 4 . . 1 . . . Fabricator Hacks 22 | . . . . . . 3 13 3 . . . . . 3 . . Network Status 5 | . . . . . . 1 3 . . . . . . 1 . . Load Schematic 9 | . . . . . . 1 6 1 . . . . . 1 . . Build 8 | . . . . . . 1 4 2 . . . . . 1 . . Repair Station Hacks 21 | . . . . . 8 2 4 5 2 . . . . . . . Scan Component 11 | . . . . . 4 1 2 3 1 . . . . . . . Repair 10 | . . . . . 4 1 2 2 1 . . . . . . . Recycling Unit Hacks 5 | . 1 . . . . . . . . . . . . . 4 . Process 1 | . . . . . . . . . . . . . . . 1 . Report Inventory 2 | . 1 . . . . . . . . . . . . . 1 . Retrieve Matter 2 | . . . . . . . . . . . . . . . 2 . Scanalyzer 28 | . . . . . 8 10 2 2 4 . . . . 2 . . Insert Component 13 | . . . . . 4 4 1 1 2 . . . . 1 . . Analyze 15 | . . . . . 4 6 1 1 2 . . . . 1 . . Garrison Access Hacks 7 | . . . . . . . 3 2 . . . . . 2 . . Seal Access 5 | . . . . . . . 1 2 . . . . . 2 . . Coupler Status 2 | . . . . . . . 2 . . . . . . . . . Unauthorized Hacks 24 | . 5 . . . 2 2 4 1 3 7 . . . . . . Terminals 23 | . 5 . . . 2 1 4 1 3 7 . . . . . . Track 4 | . 3 . . . . . . . 1 . . . . . . . Assimilate 8 | . . . . . 1 . 1 1 1 4 . . . . . . Botnet 11 | . 2 . . . 1 1 3 . 1 3 . . . . . . Fabricators . | . . . . . . . . . . . . . . . . . Repair Stations . | . . . . . . . . . . . . . . . . . Recycling Units . | . . . . . . . . . . . . . . . . . Scanalyzers . | . . . . . . . . . . . . . . . . . Garrison Access 1 | . . . . . . 1 . . . . . . . . . . Watchers 1 | . . . . . . 1 . . . . . . . . . . Data Cores Recovered . | . . . . . . . . . . . . . . . . . Used . | . . . . . . . . . . . . . . . . . Hacking Detections 63 | . 7 . . . 11 9 14 8 3 4 . . 1 2 3 1 Full Trace Events 1 | . . . . . 1 . . . . . . . . . . . Feedback Events . | . . . . . . . . . . . . . . . . . Feedback Blocked . | . . . . . . . . . . . . . . . . . Robot Schematics Acquired 2 | . . . . . . . 2 . . . . . . . . . Robots Built 10 | . . . . . . . 9 1 . . . . . . . . Matter 1107 | . . . . . . . 855 252 . . . . . . . . Time 514 | . . . . . . . 380 134 . . . . . . . . Total Robot Build Rating 49 | . . . . . . . 45 4 . . . . . . . . Part Schematics Acquired 16 | . . . . . 3 3 1 2 6 . . . . 1 . . Parts Built 5 | . . . . . . 1 2 . . . . . . 2 . . Matter 511 | . . . . . . 219 146 . . . . . . 146 . . Time 225 | . . . . . . 116 73 . . . . . . 36 . . Total Part Build Rating 15 | . . . . . . 3 6 . . . . . . 6 . . Parts Repaired 10 | . . . . . 4 1 2 2 1 . . . . . . . Time 306 | . . . . . 134 19 49 48 56 . . . . . . . Parts Recycled . | . . . . . . . . . . . . . . . . . Recycled Matter 36 | . . . . . . . . . . . . . . . 36 . Retrieved Matter 36 | . . . . . . . . . . . . . . . 36 . Retrieved Components . | . . . . . . . . . . . . . . . . . Parts Scanalyzed 12 | . . . . . 4 3 1 1 2 . . . . 1 . . Part Schematics Acquired 11 | . . . . . 3 3 1 1 2 . . . . 1 . . Parts Damaged . | . . . . . . . . . . . . . . . . . Bothacking | -11 -10 -10 -10 -9 -8 -7 -6 -5 -4 -4 -4 -4 -4 -3 -2 -1 ------------ Run | Scr Mat Min Exi Min Mat Fac Fac Fac Fac Ext Cet Arc Hub Res Res Acc Used RIF Installer . | . . . . . . . . . . . . . . . . . Robots Hacked . | . . . . . . . . . . . . . . . . . Non-combat . | . . . . . . . . . . . . . . . . . Combat . | . . . . . . . . . . . . . . . . . Robot Hacks Applied . | . . . . . . . . . . . . . . . . . Relay Couplers Released . | . . . . . . . . . . . . . . . . . Robots Rewired . | . . . . . . . . . . . . . . . . . Allies Hacked . | . . . . . . . . . . . . . . . . . Hacks Repelled 1 | . . . . . . . . 1 . . . . . . . . Allies | -11 -10 -10 -10 -9 -8 -7 -6 -5 -4 -4 -4 -4 -4 -3 -2 -1 -------- Run | Scr Mat Min Exi Min Mat Fac Fac Fac Fac Ext Cet Arc Hub Res Res Acc Total Allies 13 | . . . . . 1 . 10 2 . . . . . . . . Largest Group 10 | . . . . . 1 . 10 7 1 . . . . . . . Highest-Rated Group 271 | . . . . . 10 . 271 195 26 . . . . . . . Highest-Rated Ally 40 | . . . . . 10 . 29 40 26 . . . . . . . Total Orders 46 | . . . . . . . 28 18 . . . . . . . . STAY 18 | . . . . . . . 14 4 . . . . . . . . FOLLOW 19 | . . . . . . . 14 5 . . . . . . . . GUARD 7 | . . . . . . . . 7 . . . . . . . . AID 2 | . . . . . . . . 2 . . . . . . . . Ally Attacks 104 | . . . . . . . 74 30 . . . . . . . . Total Damage 1396 | . . . . . . . 918 478 . . . . . . . . Kills 13 | . . . . . . . 7 6 . . . . . . . . Allies Corrupted 1 | . . . . . . . . 1 . . . . . . . . Allies Melted . | . . . . . . . . . . . . . . . . . Intel | -11 -10 -10 -10 -9 -8 -7 -6 -5 -4 -4 -4 -4 -4 -3 -2 -1 ------- Run | Scr Mat Min Exi Min Mat Fac Fac Fac Fac Ext Cet Arc Hub Res Res Acc Robot Analysis Total 1 | . 1 . . . . . . . . . . . . . . . Derelict Logs Recovered . | . . . . . . . . . . . . . . . . . Drone Launches . | . . . . . . . . . . . . . . . . . Drone Recoveries . | . . . . . . . . . . . . . . . . . Exploration | -11 -10 -10 -10 -9 -8 -7 -6 -5 -4 -4 -4 -4 -4 -3 -2 -1 ------------- Run | Scr Mat Min Exi Min Mat Fac Fac Fac Fac Ext Cet Arc Hub Res Res Acc Turns Passed 11128 | 20 908 182 976 417 3445 368 1235 1466 416 278 60 9 19 610 481 238 Spaces Moved 12251 | 7 640 132 796 286 1345 830 2059 2168 523 555 210 38 67 1323 675 597 Core . | . . . . . . . . . . . . . . . . . Treads . | . . . . . . . . . . . . . . . . . Legs 3206 | 7 640 132 796 286 1345 . . . . . . . . . . . Wheels . | . . . . . . . . . . . . . . . . . Hover . | . . . . . . . . . . . . . . . . . Flight 9045 | . . . . . . 830 2059 2168 523 555 210 38 67 1323 675 597 Fastest Speed 21 | 120 120 120 120 120 120 25 22 22 23 23 24 24 24 21 29 25 Average Speed 55 | 120 120 120 120 120 176 25 22 22 23 23 24 24 24 24 29 30 Slowest Speed 203 | 120 200 120 120 120 203 26 22 23 23 24 24 24 24 100 29 31 Overloaded Moves . | . . . . . . . . . . . . . . . . . Propulsion Burnouts . | . . . . . . . . . . . . . . . . . Robots Hopped 67 | . . . . . . 9 13 3 1 . . . . 26 2 13 Cave-ins Triggered 1 | . . . . . . . . . . 1 . . . . . . Exploration Rate (%) 46 | 2 99 31 93 62 85 28 36 39 17 67 79 69 8 40 21 15 Regions Visited 16 Branch Regions 7 Pre-discovered Areas 2 | . . . 1 1 . . . . . . . . . . . . Known Exits Taken 16 | 1 1 1 1 1 1 1 1 1 1 1 1 1 1 1 1 . Unknown Exits Taken . | . . . . . . . . . . . . . . . . . Scrap Searched 1 | . . . . 1 . . . . . . . . . . . . Spaces Dug 41 | . . . . . 12 4 2 1 2 4 . . . 10 2 4 Terrain Destroyed 41 | . . . . . 12 4 2 1 2 4 . . . 10 2 4 Melee 29 | . . . . . . 4 2 1 2 4 . . . 10 2 4 Projectile 12 | . . . . . 12 . . . . . . . . . . . AOE . | . . . . . . . . . . . . . . . . . Terrain Rammed . | . . . . . . . . . . . . . . . . . Walls Destroyed . | . . . . . . . . . . . . . . . . . Machines Disabled . | . . . . . . . . . . . . . . . . . Actions | -11 -10 -10 -10 -9 -8 -7 -6 -5 -4 -4 -4 -4 -4 -3 -2 -1 --------- Run | Scr Mat Min Exi Min Mat Fac Fac Fac Fac Ext Cet Arc Hub Res Res Acc Total 16277 | 12 737 150 817 361 2276 968 2828 3150 813 689 218 37 69 1570 951 631 Wait 3500 | 2 40 5 . 71 727 94 707 946 275 123 9 . 3 226 246 26 Move 12108 | 6 639 131 795 285 1344 812 2032 2161 520 554 209 37 66 1275 670 572 Hop 59 | . . . . . . 8 13 3 1 . . . . 21 2 11 Pick Up 130 | . 12 2 11 2 33 17 17 6 6 . . . . 9 11 4 Fast Attach 37 | . 5 . 5 . 13 2 8 2 . . . . . 2 . . Attach 42 | . 1 . . . 8 2 1 2 2 4 . . . 10 8 4 Detach 11 | . 1 . . . 1 . 2 1 . . . . . 3 1 2 Swap 66 | 1 7 3 . . 27 11 2 3 2 1 . . . 1 3 5 Drop 129 | . 10 5 6 2 43 16 22 5 4 . . . . 9 5 2 Fire 111 | 3 22 4 . . 80 2 . . . . . . . . . . Melee 47 | . . . . . . 4 6 3 3 7 . . . 14 5 5 Ram . | . . . . . . . . . . . . . . . . . Kick 1 | . . . . 1 . . . . . . . . . . . . Crush . | . . . . . . . . . . . . . . . . . Escape Stasis 36 | . . . . . . . 18 18 . . . . . . . . Rewire . | . . . . . . . . . . . . . . . . . Trap . | . . . . . . . . . . . . . . . . . Miscellaneous . | . . . . . . . . . . . . . . . . . Route ------- -11/Scrapyard -10/Materials (discovered 4 exits: *Mat x3 / *Min) -10/Mines (discovered 2 exits: *Mat / *Exi) -10/Exiles (discovered 2 exits: *Min x2) -9/Mines (discovered 2 exits: *Mat x2) -8/Materials -7/Factory (discovered 4 exits: *Fac x2 / *Low x2) -6/Factory (discovered 6 exits: *Fac x4 / *Low x2) -5/Factory (discovered 6 exits: *Fac x4 / *Upp x2) -4/Factory (discovered 8 exits: Res x4 / Upp x2 / *Ext x2) -4/Extension (discovered 3 exits: *Res x2 / *Cet) -4/Cetus (discovered 2 exits: *Res / *Arc) -4/Archives -4/Hub_04(d) (discovered 4 exits: *Res x4) -3/Research (discovered 6 exits: *Res x3 / Arm / *Qua x2) -2/Research (discovered 3 exits: *Acc x3) -1/Access To Epsilon Eridani History --------- Turn | Location | Event 14 | -11/Scrapyard | Identified exit to Materials 14 | -11/Scrapyard | Discovered exit to Materials (range 3) 21 | -11/Scrapyard | Entered Materials 21 | -10/Materials | Evolved 1 slot: Propulsion x1 198 | -10/Materials | Identified exit to Mines 198 | -10/Materials | Discovered exit to Mines (range 16) 302 | -10/Materials | Build established: Hacker-Mutant 460 | -10/Materials | Identified exit to Materials 460 | -10/Materials | Discovered exit to Materials (range 17) 691 | -10/Materials | Discovered exit to Materials (range 12) 838 | -10/Materials | Discovered exit to Materials (range 10) 929 | -10/Materials | Entered Mines 941 | -10/Mines | Discovered exit to Materials (range 8) 1079 | -10/Mines | Met a Derelict shopkeep closing up shop 1106 | -10/Mines | Deemed a non-threat by the Exiles lab entrance 1106 | -10/Mines | Identified exit to Exiles 1106 | -10/Mines | Discovered exit to Exiles (range 5) 1111 | -10/Mines | Entered Exiles 1127 | -10/Exiles | Identified exit to Mines 1127 | -10/Exiles | Discovered exit to Mines (range 15) 1145 | -10/Exiles | Met 8R-AWN 1171 | -10/Exiles | Met EX-HEX 1239 | -10/Exiles | Met EX-DEC 1256 | -10/Exiles | Visited The Gauntlet 1446 | -10/Exiles | Learned location of Zion (-6) 1528 | -10/Exiles | Discovered exit to Mines (range 12) 1611 | -10/Exiles | Met EX-BIN 1635 | -10/Exiles | Aligned with FarCom system 1636 | -10/Exiles | Given EX-Vault access code 1691 | -10/Exiles | Opened EX-Vault 1727 | -10/Exiles | Found Prototype Special Weapon 1727 | -10/Exiles | Identified Field Lobotomy Kit 1733 | -10/Exiles | Found Prototype Device 1733 | -10/Exiles | Identified Cloak of Protection 1815 | -10/Exiles | Warned to stay clear of 0b10 Research branches 2087 | -10/Exiles | Left Exiles lab with Cloak of Protection 2087 | -10/Exiles | Entered Mines 2108 | -9/Mines | Identified exit to Materials 2108 | -9/Mines | Discovered exit to Materials (range 5) 2328 | -9/Mines | Learned location of Storage (-9) 2383 | -9/Mines | Discovered exit to Materials (range 10) 2504 | -9/Mines | Entered Materials 2504 | -8/Materials | Evolved 4 slots: Power x1, Propulsion x1, Utility x2 3017 | -8/Materials | Repaired Aluminum Leg 3044 | -8/Materials | Repaired Aluminum Leg 3433 | -8/Materials | Repaired Gauss Rifle 3550 | -8/Materials | Repaired Lgt. Deuterium Engine 4081 | -8/Materials | Build established: Scavenger-Mutant 4849 | -8/Materials | Identified exit to Factory 4849 | -8/Materials | Discovered exit to Factory (range 16) 5563 | -8/Materials | Build established: Hacker-Mutant 5949 | -8/Materials | Entered Factory 5949 | -7/Factory | Evolved 2 slots: Propulsion x1, Utility x1 5986 | -7/Factory | Repaired Lgt. Deuterium Engine 6146 | -7/Factory | Identified exit to Factory 6146 | -7/Factory | Discovered exit to Factory (range 4) 6154 | -7/Factory | Local fabrication network quarantined 6205 | -7/Factory | Fabricated Imp. VTOL Module (x1) 6250 | -7/Factory | Build established: Hacker-Sprinter 6257 | -7/Factory | Identified exit to Lower Caves 6305 | -7/Factory | Discovered exit to Factory (range 3) 6317 | -7/Factory | Entered another Factory area 6317 | -6/Factory | Evolved 2 slots: Propulsion x1, Utility x1 6362 | -6/Factory | Repaired Imp. VTOL Module 6522 | -6/Factory | Fabricated Lgt. Nuclear Core? 6633 | -6/Factory | Repaired Lgt. Nuclear Core 6665 | -6/Factory | Fabricated G-50 Soldier (x3) 6673 | -6/Factory | Build established: Hacker-Scout 6744 | -6/Factory | Fabricated G-50 Soldier (x3) 6926 | -6/Factory | Local fabrication network quarantined 6940 | -6/Factory | Identified exit to Factory 7034 | -6/Factory | Fabricated G-50 Soldier (x3) 7084 | -6/Factory | Identified exit to Lower Caves 7552 | -6/Factory | Entered another Factory area 7552 | -5/Factory | Accompanied by 6 allies 7552 | -5/Factory | Evolved 2 slots: Utility x2 7657 | -5/Factory | Identified exit to Upper Caves 7657 | -5/Factory | Discovered exit to Upper Caves (range 11) 7838 | -5/Factory | Fabricated I-36 Angel (x1) 7859 | -5/Factory | Build established: Wizard-Scout 7945 | -5/Factory | Local fabrication network quarantined 8125 | -5/Factory | Repaired Broken Lgt. Nuclear Core 8148 | -5/Factory | Repaired Remote Datajack 8222 | -5/Factory | Build established: Wizard-Sprinter 8464 | -5/Factory | Identified exit to Factory 8704 | -5/Factory | P-70 Sage assimilated allied Soldier 5i 9018 | -5/Factory | Entered another Factory area 9018 | -4/Factory | Accompanied by 1 ally 9018 | -4/Factory | Evolved 2 slots: Utility x2 9121 | -4/Factory | Repaired Imp. Remote Datajack 9248 | -4/Factory | Identified exit to Upper Caves 9248 | -4/Factory | Identified exit to Extension 9248 | -4/Factory | Identified exit to Research 9434 | -4/Factory | Entered Extension 9529 | -4/Extension | Crushed by falling debris 9560 | -4/Extension | Lost 4 parts (2n2u) 9641 | -4/Extension | Identified exit to Cetus 9682 | -4/Extension | Spotted B-86 Titan 9684 | -4/Extension | Spotted B-86 Titan 9712 | -4/Extension | Entered Cetus 9716 | -4/Cetus | Spotted Cetus Guard 9716 | -4/Cetus | Spotted Cetus Guard 9717 | -4/Cetus | Spotted Cetus Guard 9722 | -4/Cetus | Discovered exit to Research (range 16) 9739 | -4/Cetus | Spotted Cetus Guard 9768 | -4/Cetus | Identified exit to Archives 9768 | -4/Cetus | Discovered exit to Archives (range 16) 9772 | -4/Cetus | Entered Archives 9778 | -4/Archives | Identified exit to Hub_04(d) 9778 | -4/Archives | Discovered exit to Hub_04(d) (range 13) 9781 | -4/Archives | Entered Hub_04(d) 9787 | -4/Hub_04(d) | Discovered exit to Research (range 7) 9800 | -4/Hub_04(d) | Entered Research 9800 | -3/Research | Evolved 2 slots: Power x1, Propulsion x1 10142 | -3/Research | Spotted B-86 Titan 10161 | -3/Research | Identified exit to Research 10161 | -3/Research | Identified exit to Armory 10161 | -3/Research | Identified exit to Quarantine 10193 | -3/Research | Fabricated Lgt. Nuclear Core? 10410 | -3/Research | Entered another Research area 10410 | -2/Research | Evolved 2 slots: Propulsion x1, Utility x1 10441 | -2/Research | Lost 5 parts (1p3n1u) 10517 | -2/Research | Identified exit to Access 10877 | -2/Research | Spotted B-90 Cyclops 10891 | -2/Research | Entered Access 10891 | -1/Access | Evolved 2 slots: Propulsion x1, Utility x1 10950 | -1/Access | Spotted B-99 Colossus 11043 | -1/Access | Identified exit to Surface 11129 | *** | Escaped! Last Messages --------------- 11039_ Dropped Nuclear Pulse Thruster. 11039_ Acquired Adv. Hacking Suite. 11043_ Connecting with Terminal... >>Access(Main) Found 1 level access point to Surface: (96,166) Map updated. >>Index(Garrisons) Found 5 garrison accesses. Downloaded coordinate data. >>Traps(Locate) Found 7 traps in 2 arrays: 6x EM Surge Trap 1x Blade Trap Map updated. 11127_ Connecting with Terminal... >>Open Sealed Barrier opened. 11128_ The Access Shell folds into the floor. [Achievement: Epsilon Run] Map ----- +----------------------------------------------------+ | ??????????????????????????????????????????# #### | | ??????????????????????????????????????????## ##??? | | ???????????????????????????????????????????# #???? | | ???????????????????????????????????????????# #???? | | ???????????????????????????????????????????# #??## | | ???????????????????????????????????????????# #??# | | ??????????????????????????????????? ??????# #??# | | ??????????????????????????????????? "????# #??# | | ???????????????????????????????????? """ ??# #??# | | ??????????????????????????????????# """ # ##?# | | ??????????????????????????????????# " + #?# | | ??????????????????????????????????# # #?# | | ??????????????????????????????????# ??# #?# | | ??????????????????????????????????# ????# #?# | | ?????????????????????BB????BB????########### #?# | | ?????????????????????BB????BB????# # #?# | | ?????????????????????????????????# # #### | | ?????????????????????????????????# " + | | ?????????????????????????????????#""" # | | ?????????????????????????????????# """ #/##### | | ???????????????????#""""""""""#??# " # # | | ????????????????Y??# #?## + # | | ???????????????????# #?# =# * # | | ???????????????????# #?############ # | | ???????????????????# "" #????????????### ### | | ???????????????????# "@ #??????????????###?? | | ???????????????????# #??????????????????? | | ???????????????????# #??????????????????? | | ???????????????????# #??????????????????? | | ??????????????????## ##?????????????????? | | ??????????????????# #?????????????????? | | ??????????????????##"" ##?????????????????? | | ???????????????????#"" #??????????????????? | | ???????????????????#"" #??????????????????? | | ???????????????????#T #??????????????????? | | ???????????????????#"" #??????????????????? | | ???????????????????#"" #??????????????????? | | ???????????????????#"" #####+############## | | ?????????????? k | | ??????????? | | ????????????##+####################+########+####+ | | ????????????????????????????????# #? | | ????????????????????????????????# ! # [ | | ????????????????????????????????# # | | ????????????????????????????????# # | | ????????????????????????????????# "" # | | ????????????????????????????????# "" # | | ????????????????????????????????# S" # | | ????????????????????????????????# """ # | | ????????????????????????????????# """ ##### | +----------------------------------------------------+ Best States ------------- Heat Dissipation 102 Coolant Potential 100 Energy Generation 63 Energy Capacity 360 Matter Stores 500 Matter Capacity 500 Sight Range 16 Terrain Scan Range 20 Terrain Scan Density 10 ECM Strength 1 Power Amplification 30 Additional Mass Support 9 Resistance: KI 35 Resistance: TH 55 Resistance: EX 35 Resistance: EM 35 Resistance: I 35 Resistance: S 35 Resistance: P 35 Utility Shielding 90 Evasion (%) 77 Targeting Accuracy 8 Offensive Hacking 58 Defensive Hacking 36 Item Schematics ----------------- Aerolev Unit | -8/Materials | Scanalyzed Enh. Autogun | -8/Materials | Scanalyzed Beam Rifle | -8/Materials | Scanalyzed Xenon Bombardment Thruster | -7/Factory | Scanalyzed Imp. VTOL Module | -7/Factory | Scanalyzed Lgt. Nuclear Core | -7/Factory | Scanalyzed Imp. System Shield | -6/Factory | Scanalyzed Imp. Remote Datajack | -5/Factory | Hacked Remote Datajack | -5/Factory | Scanalyzed Nuclear Pulse Thruster | -4/Factory | Scanalyzed Lrg. Storage Unit | -4/Factory | Scanalyzed Mic. Fission Core | -4/Factory | Hacked Field Propulsion Array | -4/Factory | Hacked Adv. Hacking Suite | -4/Factory | Hacked Gravity Neutralizing Apparatus | -4/Factory | Hacked Enh. Optical Array | -3/Research | Scanalyzed Robot Schematics ------------------ G-50 Soldier | -6/Factory | Hacked I-36 Angel | -6/Factory | Hacked Fabricated ------------ Imp. VTOL Module | x1 | -7/Factory Lgt. Nuclear Core | x2 | -6/Factory G-50 Soldier | x3 | -6/Factory G-50 Soldier | x3 | -6/Factory G-50 Soldier | x3 | -6/Factory I-36 Angel | x1 | -5/Factory Lgt. Nuclear Core | x2 | -3/Research Alien Tech Used ----------------- None Achievements -------------- Deadly Force Epsilon Run Maximum Efficiency War Machine Challenges ------------ None Game ------ Seed AerolevSuspensionFilter Manual? 0 Play Time 05:13:13 Cumulative 124.3 hours Start 2021.02.16 @ 23:40:01 End 2021.02.19 @ 23:21:43 Sessions 5 Manual Loads 0 Difficulty Explorer Special Mode None Game No. 69 Rogue 68 Adventurer 0 Explorer 1 Win Type 0 Total 1 Types 1/0/0/0/0/0/0/0/0 Lore% 42 Gallery% 51 Achievement% 39 Wizard Run 0 Options --------- ASCII 1 Keyboard 1 Movement Numpad Keybinds 0 Fullscreen 1 Font 18/SmallcapsGlow Map View 76x50 Tactical HUD 1 Map Filters NONE Filters NONE Steam 1 RUN: 57399b02-9fb1-4a0d-b396-fdd025a83e5f